[Event "Marmaris Icmeler-IM May 2022"]
[Site "Icmeler"]
[Date "2022.05.05"]
[Round "2.2"]
[White "Odeev, Handszar"]
[Black "Ince, Taylan Ruzgar"]
[Result "1/2-1/2"]
[ECO "C00"]
[WhiteElo "2305"]
[BlackElo "2018"]
[Annotator "TA"]
[PlyCount "104"]
[EventDate "2022.05.05"]
[EventType "schev"]
[EventCountry "TUR"]
[SourceTitle "playchess.com"]
[Source "ChessBase"]
[SourceQuality "1"]
[TimeControl "5400+30"]

{[%evp 9,104,0,0,8,1,16,16,15,13,15,16,9,38,14,17,0,0,-3,7,-31,-30,-70,-70,-83,-80,-78,-46,-125,-31,-76,-34,-83,-18,-115,-62,-164,-156,-215,-165,-187,-68,-50,-19,-46,0,-120,-71,-87,0,0,0,0,0,0,0,0,0,-1,-3,-10,0,0,0,-5,24,10,102,27,40,0,0,0,5,0,29,0,0,-5,0,-8,0,0,0,0,0,0,0,0,0,0,0,-6,-8,-28,-27,-44,0]} 1. e4 e6 2. Qe2 c5 3. b3 b6 4. Bb2 Bb7 5. Nc3 Nc6 6. O-O-O {C00: French: Unusual White 2nd moves.} Nd4 {[#]} 7. Qe3 $146 ({Predecessor:} 7. Qe1 Ne7 8. f4 Nec6 9. Nf3 Qc7 10. Nxd4 cxd4 11. Ne2 d3 12. cxd3 Nb4+ 13. Nc3 Nxa2+ {0-1 (51) Litchfield,F (2061)-Ikeda,J (2393) Canberra 2016}) 7... Ne7 8. Nf3 {The position is equal.} Nec6 9. Ne2 {[%cal Re2d4]} Nxf3 10. Qxf3 f6 11. Qg3 Qb8 12. Qg4 Ne5 13. Qh5+ Nf7 14. d4 Bxe4 15. Qg4 Bc6 16. Ng3 Nh6 17. Qh4 Be7 (17... Nf7 18. dxc5 bxc5 19. Nh5 $11) 18. Bc4 (18. d5 $15 Bxd5 19. Nh5 (19. c4 Bc6 $17)) 18... d5 (18... Bxg2 $6 19. Rhg1 Qb7 20. Nh5 $11 (20. dxc5 O-O-O $11)) (18... cxd4 $1 $17 {Hoping for ...0-0.} 19. Bxd4 O-O) 19. Qh5+ Nf7 (19... Kf8 $5 {[%cal Rd5c4]} 20. Bd3 cxd4 21. Bxd4 e5 $17) 20. Bd3 (20. Rhe1 $15 {should be considered.}) 20... g6 (20... Bd7 $17 21. Kb1 g6) 21. Qg4 (21. Qe2 $1 $11 {remains equal.}) 21... Bd7 (21... f5 $17 22. Qe2 O-O 23. dxc5 Re8 24. cxb6 axb6) 22. dxc5 (22. Kb1 $15) 22... bxc5 $19 23. f4 (23. Rhe1 $17 {keeps fighting.}) 23... Qb6 {[%cal Oc5c4]} (23... e5 24. Qf3 c4 25. fxe5 (25. Qxd5 cxd3 26. fxe5 Qc8 $17) 25... Nxe5 26. Qxd5 $11) 24. Rhe1 {[%cal Of4f5] [#]} O-O-O ({Not} 24... e5 25. Qf3 Bc6 26. fxe5 fxe5 27. Bxe5 $11) ({Better is} 24... c4 $1 $19 {[%cal Rc4d3]} 25. Bf1 Rc8) 25. Qh4 $15 d4 (25... Qb4 $5 {[%cal Rc5c4]}) 26. Bc4 Rde8 (26... Kb8 $15 {feels stronger.}) 27. Qg4 {[#]} (27. c3 $11) 27... Nd8 (27... e5 $142 $1 28. Qf3 Nd6) 28. Qf3 f5 (28... Rhf8 $17) 29. c3 $1 $11 {[%cal Rc3d4]} Bf6 30. cxd4 cxd4 31. Ne2 {[%cal Re2d4,Bg3e2,Be2f4,Bf4d5][%mdl 32]} Nc6 32. Qf2 e5 33. fxe5 {[%mdl 64] Remove Defender} Rxe5 34. Nf4 Rxe1 35. Rxe1 {Threatens to win with Nd5.} Qc5 36. Kb1 Kb8 37. Nd5 {[%mdl 1024] White has compensation.} Bd8 (37... Be5 $11 {keeps the balance.}) 38. Qf4+ ({White should play} 38. Qg3+ $16 f4 39. Qxf4+ Ka8 40. Rc1) 38... Kb7 $1 39. Rc1 {[%cal Oc4a6]} g5 $1 40. Qf2 {[%cal Oc4a6] And now Ba6+! would win.} Qd6 41. Bxd4 Re8 42. Bb2 (42. Rd1 $5 {[%cal Rd4c3]}) 42... Na5 43. Rd1 Nxc4 44. bxc4 f4 45. Ka1 Bc6 ({Much less strong is} 45... Bb6 46. Qc2 Qg6 47. Qb3 $14 (47. Qxg6 hxg6 48. Nxb6 Bg4 $11)) 46. Qc2 {Strongly threatening Qb3+.} Qg6 47. Qb3+ Ka8 48. Bd4 Bxd5 49. cxd5 {[%cal Od5d6] Black must now prevent d6!} Bf6 50. Qc3 Bxd4 51. Qxd4 Qd6 52. h3 Qe5 {Weighted Error Value: White=0.23 (precise) /Black=0.20 (precise)} 1/2-1/2

[Event "Marmaris Icmeler-IM May 2022"]
[Site "Icmeler"]
[Date "2022.05.05"]
[Round "2.3"]
[White "Sevdimaliyev, Urfan"]
[Black "Taspinar, Yanki"]
[Result "0-1"]
[ECO "C69"]
[WhiteElo "2331"]
[BlackElo "2176"]
[Annotator "TA"]
[PlyCount "67"]
[EventDate "2022.05.05"]
[EventType "schev"]
[EventCountry "TUR"]
[SourceTitle "playchess.com"]
[Source "ChessBase"]
[SourceQuality "1"]
[TimeControl "5400+30"]

{[%evp 21,67,7,27,15,31,24,25,0,0,-31,-31,-8,0,-15,-14,-14,-6,-48,-42,-45,-11,-71,-80,-71,-71,-93,-76,-89,-75,-85,-76,-62,-85,-209,-204,-173,-193,-278,-290,-293,-293,-745,-290,-628,-611,-606,-603,-519]} 1. e4 e5 2. Nf3 Nc6 3. Bb5 a6 4. Bxc6 dxc6 5. O-O f6 6. d4 exd4 7. Nxd4 c5 8. Ne2 Qxd1 9. Rxd1 Bd7 10. Nbc3 O-O-O 11. Be3 Re8 12. Rd2 {C69: Ruy Lopez: Exchange Variation with 5 0-0 f6.} Bc6 13. Rad1 b6 14. Nf4 {[%cal Of4e6] White has an edge.} Bd6 {[#]} 15. f3 $146 ({But not} 15. Rxd6 cxd6 16. f3 Kb7 $15) (15. Nfd5 $5 {[%cal Rd5b6]}) ({Predecessor:} 15. Nfd5 Kb7 16. f3 Ne7 17. Nxe7 Rxe7 18. Nd5 Rf7 19. Bf2 f5 20. exf5 Rxf5 21. Bg3 {½-½ (33) Oleksienko,M (2568)-Rzayev,B (2429) Pardubice 2013}) 15... Be5 {[%cal Of6f5] A strong pair of Bishops.} 16. Ncd5 Ne7 17. c3 Nxd5 18. Nxd5 Rhf8 19. g3 ({Of course not} 19. f4 Bxd5 20. Rxd5 Bd6 $17) 19... Kb7 20. Re1 Rd8 21. Bf4 (21. Red1 $11) 21... Bxf4 $17 22. gxf4 f5 23. c4 fxe4 24. Rxe4 Rd7 25. Kf2 b5 {[#] aiming for ...bxc4.} 26. b3 Rf5 27. Kg3 {White does not recover from this.} (27. Ke3 $17) 27... Bxd5 $19 28. cxd5 Rfxd5 ({Worse is} 28... Rdxd5 29. Rc2 $17) 29. Rxd5 (29. Rc2 $142) 29... Rxd5 {KR-KR} 30. Re7 c4 {[%cal Bc5c4,Bc4c3][%mdl 32]} 31. Re4 $2 (31. bxc4 bxc4 32. Re4) 31... Rc5 $2 (31... c3 {And now ...c2 would win.} 32. Re1 Rd2) 32. Re2 (32. bxc4 bxc4 33. Re1) 32... c3 {[#] Hoping for ...c2.} 33. Rc2 Kb6 34. f5 {Weighted Error Value: White=0.71/Black=0.21 (precise)} 0-1

[Event "Marmaris Icmeler-IM May 2022"]
[Site "Icmeler"]
[Date "2022.05.05"]
[Round "2.4"]
[White "Toufighi, Homayoon"]
[Black "Kilic, Eray"]
[Result "1-0"]
[ECO "E67"]
[WhiteElo "2439"]
[BlackElo "2192"]
[Annotator "TA"]
[PlyCount "95"]
[EventDate "2022.05.05"]
[EventType "schev"]
[EventCountry "TUR"]
[SourceTitle "playchess.com"]
[Source "ChessBase"]
[SourceQuality "1"]
[TimeControl "5400+30"]

{[%evp 20,95,14,-4,4,0,-18,-11,0,-29,0,-62,-32,-114,-122,-122,-110,-120,-119,-115,-131,-124,-103,-130,-59,-73,-24,-66,-38,-80,-72,-92,-92,-171,-7,-20,-14,-18,122,130,181,193,177,152,161,146,122,110,158,68,319,309,318,303,337,254,398,347,437,429,540,439,532,506,1047,893,1032,1030,989,967,1276,1453,1934,2286,2649,1444,1444,-11]} 1. Nf3 Nf6 2. g3 g6 3. Bg2 Bg7 4. O-O O-O 5. c4 d6 6. d4 Nbd7 7. Nc3 e5 8. dxe5 dxe5 9. h3 Re8 10. Be3 c6 11. Qb3 Qa5 {[#] E67: King's Indian: Fianchetto: 6...Nbd7.} 12. Nd2 $146 (12. a3 {seems wilder.} Nb6 13. Ng5 Qa6 14. c5) ({Predecessor:} 12. a3 Nc5 13. Qb4 Qxb4 14. axb4 Na6 15. b5 cxb5 16. Nxb5 Ne4 17. Rxa6 bxa6 18. Nc7 Bb7 19. Nxe8 Rxe8 20. Bxa7 {½-½ (41) Peptan,C (2395)-Vajda,L (2597) Medias 2016}) 12... Nc5 {[%cal Bd7c5,Bc5e6,Be6f4,Bf4g2][%mdl 32]} 13. Qc2 Ne6 {The position is equal.} 14. Nf3 {Inhibits Nd4.} Nh5 15. Rfd1 (15. Ne4 $11) 15... f5 $15 16. g4 (16. Bd2 $1 $15) 16... Nhf4 $17 17. gxf5 gxf5 18. Bxf4 Nxf4 19. e3 Nxg2 20. Kxg2 e4 $36 {[%cal Be5e4,Be4e3][%mdl 2080] White is under strong pressure.} 21. Ng1 f4 (21... Qb4 $17 22. Nge2 Qxc4) 22. exf4 $15 Qh5 (22... Be6 $17 23. Qc1 (23. Nxe4 Qf5 $15) 23... Bxc3 24. bxc3 Bxc4) 23. Nce2 Bf5 {[%cal Oh5f3][%mdl 1024] ...Qf3+! is the strong threat. Black has compensation.} 24. Qb3 {Prevents Qf3+.} e3 25. Ng3 Qg6 {Threatens to win with ...Bc2.} 26. Re1 (26. Rac1 $17 {keeps fighting.}) 26... Be4+ $2 {A strong pair of Bishops.} (26... exf2 $19 27. Kxf2 Bc2 28. Qxb7 Bd4+ 29. Kg2 Rab8 30. Rxe8+ Qxe8) 27. Nf3 $11 Bd4 (27... Bxf3+ $5 28. Kxf3 exf2 29. Kxf2 Qh6 30. Rxe8+ Rxe8 $15) 28. fxe3 {[#]} Kh8 $1 29. Kf2 $16 Rg8 (29... Bf6 $16) 30. Rg1 $18 Bc2 {[#]} 31. f5 $1 {[%mdl 512]} Qe8 32. Qa3 ({Wrong is} 32. Qxc2 $2 Qxe3+ 33. Kg2 Rxg3+ $1 {[%mdl 512]} 34. Kxg3 Be5+ 35. Kh4 Qh6+ 36. Kg4 Rg8+ 37. Ng5 Qxg5+ 38. Kf3 Qf4+ 39. Ke2 Qh2+ 40. Ke3 Qf4+ 41. Ke2 Qh2+ 42. Ke3 Qxc2 $19) 32... Bf6 33. Qd6 Rf8 (33... Bxb2 $142 34. Nd4 Rg7) 34. Rac1 (34. Rae1 $16) 34... Rd8 $2 {[%mdl 8192] [#] Black cannot hold the game after this.} 35. Qf4 $1 Bd3 {[#]} 36. b3 Qe7 37. Rcd1 {And now e4 would win.} Bc2 (37... b5 {was worth a try.} 38. e4 bxc4) 38. Rxd8 Qxd8 39. e4 {White is clearly winning.} Qb6+ 40. Qe3 Qa5 41. Nh5 Be5 (41... Qc3 $142 42. Nxf6 Qxf6) 42. Rc1 Bb1 43. Nxe5 Qxe5 44. Rxb1 Qh2+ 45. Kf3 {Threatening mate with Qd4+.} Qxh3+ 46. Ng3 Rg8 47. Qd4+ Rg7 48. Qxg7+ $2 {[%mdl 32768] Weighted Error Value: White=0.24 (precise) /Black=0.58. Loss on time!?} 1-0

[Event "Marmaris Icmeler-IM May 2022"]
[Site "Icmeler"]
[Date "2022.05.05"]
[Round "2.5"]
[White "Huseyinoglu, Alihan"]
[Black "Nazari, Arad"]
[Result "0-1"]
[ECO "D87"]
[WhiteElo "2278"]
[BlackElo "2287"]
[Annotator "TA"]
[PlyCount "98"]
[EventDate "2022.05.05"]
[EventType "schev"]
[EventCountry "TUR"]
[SourceTitle "playchess.com"]
[Source "ChessBase"]
[SourceQuality "1"]
[TimeControl "5400+30"]

{[%evp 21,98,32,36,0,0,3,30,22,18,26,20,19,29,0,0,-23,0,0,0,-29,0,-14,-9,-8,-13,-25,0,0,0,0,0,-17,-11,-16,-8,-19,-19,-9,-17,-73,-16,-52,-41,-58,-50,-128,-56,-105,-70,-53,-53,-60,-8,-118,0,0,0,-8,-8,-8,-8,-8,0,0,0,-106,-114,-262,-256,-260,-260,-260,-242,-264,-257,-483,-459,-802,-802]} 1. d4 Nf6 2. c4 g6 3. Nc3 d5 4. cxd5 Nxd5 5. e4 Nxc3 6. bxc3 Bg7 7. Bc4 O-O 8. Ne2 c5 9. O-O Nc6 10. Be3 Bg4 11. f3 Bd7 $1 {[%mdl 4] is more profitable than 11...Na5 at the moment.} 12. Qd2 {D87: Exchange Grünfeld: Classical Line: Variations without ...cxd4.} Qa5 13. Rfd1 Rfd8 14. Rab1 {White has an edge.} cxd4 15. cxd4 Qxd2 16. Rxd2 {[#]} (16. Bxd2 Nxd4 17. Nxd4 Bxd4+ 18. Kf1 b6 $17) 16... Rac8 $146 ({Predecessor:} 16... Na5 17. Bd5 e6 18. Bb3 Bb5 19. Bg5 Rd7 20. Bxe6 fxe6 21. Rxb5 Nc4 22. Rd3 a6 {0-1 (43) Banhazi,I (2067)-Biro,Z (2035) Hungary 2017}) 17. Bb5 (17. Rxb7 Na5 18. Rxd7 Rxd7 $15) 17... Na5 18. Kf2 a6 19. Bd3 b5 20. d5 Rf8 21. g4 Nc4 22. Bxc4 Rxc4 23. Bd4 e5 24. dxe6 Bxe6 25. Bxg7 Kxg7 26. Ke3 Ra4 27. Rbb2 Rc8 28. Nd4 Rc3+ 29. Kf4 Bc4 30. Nb3 (30. h4 $11) 30... Ra3 ({Black should try} 30... g5+ $1 $17 31. Kg3 Ra3) 31. Rd6 a5 {[%cal Rc4b3]} 32. Nd2 Be2 33. Rb3 (33. g5 $15) 33... a4 {Black is more active.} ({Better is} 33... Raxb3 $17 34. axb3 a4 35. bxa4 bxa4) 34. Rb2 (34. Rxc3 $15 {feels stronger.} Rxc3 35. e5) 34... Re3 (34... Bxf3 35. Nb1 $16) 35. g5 h5 (35... Bxf3 36. Rxb5 Be2 37. Rb7 $11) 36. h4 $1 Red3 (36... Bxf3 37. Rxb5 Bg4 38. Rb8 $14) ({Black should play} 36... Rac3 $15) 37. e5 (37. Rf6 $1 $11) 37... Rdc3 (37... Rac3 $1 $17 {Strongly threatening ...a3.} 38. Rxd3 Bxd3) 38. Rd7 $11 {e6 is the strong threat.} Bc4 (38... Bxf3 39. e6 Bc6 40. Rxf7+ Kh8 41. Rf6 $16) 39. Nxc4 Rxc4+ {[%mdl 4096] Endgame KRR-KRR} 40. Kg3 {And now e6 would win.} Rg4+ 41. Kf2 Rf4 42. e6 {aiming for Re2.} (42. Rxb5 Rfxf3+ 43. Kg1 Rg3+ 44. Kf1 (44. Kf2 Rgc3 $17) 44... Rgf3+ 45. Kg1 Rxa2) 42... Raxf3+ 43. Kg2 {[#]} (43. Ke2 $1 $11 {keeps the balance.}) 43... Re3 $1 $17 44. Rxf7+ {Loses the game.} (44. exf7 $17 Rg4+ 45. Kf2) 44... Rxf7 $19 45. exf7 $17 {[#] KR-KR} Re5 ({Weaker is} 45... Kxf7 46. Rxb5 Ra3 47. Rb2 $15) 46. Kf3 Kxf7 47. Kf4 Rc5 48. Rd2 $2 (48. Ke3 {is a better defense.}) 48... b4 $19 49. Rd6 (49. Rd7+ $142 Ke6 50. Rg7 Rc4+ 51. Kf3) 49... Rb5 {Weighted Error Value: White=0.36/Black=0.15 (very precise)} 0-1

[Event "Marmaris Icmeler-IM May 2022"]
[Site "Icmeler"]
[Date "2022.05.06"]
[Round "3.1"]
[White "Hereklioglu, Sude"]
[Black "Odeev, Handszar"]
[Result "0-1"]
[ECO "A05"]
[WhiteElo "1918"]
[BlackElo "2305"]
[Annotator "TA"]
[PlyCount "86"]
[EventDate "2022.05.05"]
[EventType "schev"]
[EventCountry "TUR"]
[SourceTitle "playchess.com"]
[Source "ChessBase"]
[SourceQuality "1"]
[TimeControl "5400+30"]

{[%evp 18,86,31,18,28,10,53,-18,22,-8,-8,-12,-15,-35,-26,-36,-5,-40,0,0,0,0,0,0,0,-57,-50,-43,-19,-60,-60,-67,-63,-95,-106,-112,-104,-132,-132,-125,-124,-150,-78,-195,-189,-227,-217,-281,-218,-227,-147,-614,-614,-614,-606,-600,-578,-606,-602,-591,-581,-573,-566,-1798,-1699,-6303,-6303,-6159,-6067,-5065,-5065]} 1. Nf3 c5 2. g3 Nc6 3. Bg2 g6 4. O-O Bg7 5. e4 Nf6 6. d3 O-O 7. Re1 d6 8. c3 Bg4 9. h3 Bxf3 10. Bxf3 Rc8 {A05: Réti Opening: 1 Nf3 Nf6.} 11. Be3 {[#]} Qb6 $146 ({Predecessor:} 11... Nd7 12. a4 a6 13. Na3 b5 14. axb5 axb5 15. Nc2 Nde5 16. Be2 e6 17. f4 Nd7 18. d4 {0-1 (50) Lopes,A-Reis,P (2332) Salvador 2008}) 12. Qd2 (12. Qe2 $14) 12... Qa6 {The position is equal.} 13. d4 cxd4 14. cxd4 e5 15. d5 Nd4 16. Bxd4 exd4 17. Na3 Nd7 18. Be2 {Prevents d3.} Qb6 {[%cal Od4d3]} 19. Nc4 Qc7 20. Rac1 Nc5 21. Bg4 {[#]} (21. Bf1 $11) 21... Nxe4 $1 $15 22. Rxe4 f5 {[%mdl 64] Deflection, Double Attack} 23. Ree1 {Black must now prevent Be2.} fxg4 24. Ne5 Qd8 25. Rxc8 Qxc8 26. Nxg4 Qf5 27. Re7 {[%cal Oe7g7]} h5 (27... Qxd5 28. Qd3 $15) 28. Nh2 Qxd5 29. g4 {[#]} Rf7 ({Not} 29... Qxa2 30. gxh5 Qb1+ 31. Nf1 $15) (29... Be5 $142 $1 {...d3 is the strong threat.} 30. Nf1 Qf3 31. gxh5 Qxh3) 30. Re8+ {[#]} (30. Rxf7 $17 Qxf7 31. Qd3) 30... Kh7 $1 $19 31. Qd3 Be5 {And now ...Bxh2+ would win.} 32. f4 Bxf4 {Really sharp!} 33. Nf3 Qc6 ({Inferior is} 33... Qxa2 34. gxh5 Rg7 35. Nxd4 $17) 34. Re6 $2 {[%mdl 8192] This costs White the game.} (34. gxh5 $17 Qxe8 35. hxg6+ Kh6 36. gxf7 Be3+ 37. Kf1 Qxf7 38. Ke2) 34... Be3+ {Black is clearly winning.} 35. Rxe3 dxe3 {[%mdl 4096] Endgame KQR-KQN} 36. Ng5+ Kg7 37. Qd4+ Kg8 {( -> ...Rf2)} 38. Qxe3 Qb6 39. Qxb6 axb6 40. Nxf7 Kxf7 41. gxh5 gxh5 42. Kf2 Kf6 43. Ke3 Kg5 {Weighted Error Value: White=0.79/Black=0.18 (very precise)} 0-1

[Event "Marmaris Icmeler-IM May 2022"]
[Site "Icmeler"]
[Date "2022.05.06"]
[Round "3.2"]
[White "Ince, Taylan Ruzgar"]
[Black "Sevdimaliyev, Urfan"]
[Result "1/2-1/2"]
[ECO "B51"]
[WhiteElo "2018"]
[BlackElo "2331"]
[Annotator "TA"]
[PlyCount "61"]
[EventDate "2022.05.05"]
[EventType "schev"]
[EventCountry "TUR"]
[SourceTitle "playchess.com"]
[Source "ChessBase"]
[SourceQuality "1"]
[TimeControl "5400+30"]

{[%evp 10,61,28,25,27,18,22,14,16,16,53,0,6,-12,-19,-23,0,0,0,0,8,8,9,0,0,0,0,0,0,-74,-48,-38,-42,-48,-43,-27,-11,-30,-30,-66,-33,-54,0,-50,41,26,27,-43,28,0,14,-51,43,0]} 1. e4 c5 2. Nf3 Nc6 3. Bb5 d6 4. O-O Bd7 5. Re1 Nf6 6. c3 a6 {B51: Sicilian: Moscow Variation (3 Bb5+) without 3...Bd7.} 7. Bc4 Bg4 $1 {7...Bg4 is better than 7...b5.} 8. d4 cxd4 {The position is equal.} 9. cxd4 e5 {has lost popularity (9...Bxf3).} 10. d5 (10. dxe5 $14 dxe5 11. Nc3) 10... Nd4 $11 11. Be3 Nxf3+ 12. gxf3 {[#]} Bc8 $146 ({Predecessor:} 12... Bd7 13. Nd2 Be7 14. Be2 Nh5 15. Nc4 b5 16. Nb6 Rb8 17. Nxd7 Qxd7 18. Kh1 O-O {1-0 (60) Mammadova,G (2357)-Eynullayev,A (2314) Nakhchivan 2017}) 13. Nd2 {[%cal Bb1d2,Bd2c4,Bc4b6][%mdl 32]} Be7 14. Bf1 O-O 15. Nc4 Nh5 16. Nb6 Rb8 17. Qd2 Nf4 18. Rac1 Bh3 19. Kh1 (19. Bxh3 $11 Nxh3+ 20. Kg2 Nf4+ 21. Bxf4 Qxb6 22. Be3) 19... Bxf1 20. Rxf1 f5 21. Rc4 fxe4 22. fxe4 Qe8 23. Qd1 Bd8 24. f3 Rf6 25. Rg1 Rh6 (25... Ng6 $15) 26. Rg3 (26. Bxf4 $11 exf4 27. Qd4) 26... Bh4 (26... Qh5 $15 27. Rc2 Bxb6 28. Bxb6 Rg6 29. Rxg6 hxg6) 27. Rg4 Bd8 28. Rg3 (28. Bxf4 $11 exf4 29. Qg1 (29. Qd4 g5 $11)) 28... Bh4 (28... Qh5 $15 29. Rc2 Bxb6 30. Bxb6 Rg6 31. Rxg6 hxg6) 29. Rg4 (29. Bxf4 $5 exf4 30. Rg2 $14) 29... Bd8 30. Rg3 (30. Bxf4 $11 exf4 31. Qg1 (31. Qd4 g5 $11)) 30... Bh4 ({Black should play} 30... Qh5 $15 31. Rc2 Bxb6 32. Bxb6 Rg6 33. Rxg6 hxg6) 31. Rg4 {Weighted Error Value: White=0.25 (precise) /Black=0.25 (precise)} (31. Bxf4 $5 exf4 32. Rg2 $14) 1/2-1/2

[Event "Marmaris Icmeler-IM May 2022"]
[Site "Icmeler"]
[Date "2022.05.06"]
[Round "3.3"]
[White "Taspinar, Yanki"]
[Black "Toufighi, Homayoon"]
[Result "0-1"]
[ECO "B06"]
[WhiteElo "2176"]
[BlackElo "2439"]
[Annotator "TA"]
[PlyCount "120"]
[EventDate "2022.05.05"]
[EventType "schev"]
[EventCountry "TUR"]
[SourceTitle "playchess.com"]
[Source "ChessBase"]
[SourceQuality "1"]
[TimeControl "5400+30"]

{[%evp 9,120,39,47,1,10,9,10,15,16,8,5,-19,-14,-19,-27,-25,-9,-24,-35,-72,-57,-80,-41,-38,-37,-44,-28,-39,-37,-75,-67,-167,-166,-168,-178,-182,-174,-308,-183,-237,-220,-256,-197,-202,-164,-209,-187,-192,-191,-231,-235,-240,-240,-235,-210,-241,-195,-254,-227,-188,-194,-183,-117,-100,-95,-96,-84,-84,-85,-315,-297,-381,-345,-379,-375,-382,-389,-407,-397,-426,-403,-436,-430,-419,-407,-510,-512,-504,-487,-703,-679,-701,-708,-672,-650,-781,-642,-29961,-29967,-29975,-29976,-29978,-29979,-29978,-29969,-29980,-29981,-29983,-29977,-29984,-29981,-29983,-29938]} 1. e4 g6 2. d4 Bg7 3. Nc3 c6 4. Bc4 b5 5. Bb3 a5 6. a4 {B06: Modern Defence.} (6. a3 $1 $14 {is more appropriate.}) 6... b4 $1 $11 7. Nce2 d5 8. e5 {The position is equal.} e6 {[#]} 9. c3 $146 ({Predecessor:} 9. Nf3 Ba6 10. O-O Nd7 11. Re1 c5 12. dxc5 Nxc5 13. Nf4 Nxb3 14. cxb3 Ne7 15. Be3 {½-½ (23) Orsher,I (2136)-Dobos,J (2309) Budapest 2001}) 9... Nd7 10. f4 Ne7 11. Be3 Ba6 12. Nf3 Qb6 13. Rc1 bxc3 14. Rxc3 Nf5 15. Bf2 h5 16. O-O Bf8 17. Qc2 $1 Rc8 18. Rc1 Bb7 ({Much less strong is} 18... Bb4 19. Rxc6 Rxc6 20. Qxc6 $14) 19. Ne1 Bb4 {Black is more active.} 20. Nd3 Bxc3 $19 21. bxc3 Ba6 {[#] White must now prevent ...Bxd3.} 22. Rb1 {[%cal Ob3d5]} Rb8 23. Rb2 (23. Qd1 $142) 23... Qc7 (23... Bxd3 $142 24. Qxd3 c5 25. dxc5 Nxc5 26. Qb5+ Qxb5 27. axb5 Nxb3 28. Rxb3 a4) 24. h3 (24. Nec1 $142) 24... h4 25. Nec1 Rg8 26. Qd2 Qd8 27. Bd1 Rxb2 28. Qxb2 Qb6 29. Qxb6 Nxb6 30. Nc5 Bc4 31. Bc2 Ng3 32. Kh2 Ke7 33. Nb7 (33. Bxg3 $142 hxg3+ 34. Kxg3) 33... Ra8 34. Bxg3 hxg3+ 35. Kxg3 Rb8 (35... Ra7 $19 36. Nd6 Rc7) 36. Nxa5 $17 Ra8 37. Nxc6+ Kd7 38. Nb4 Nxa4 39. Ncd3 $2 {[#] Now White is beyond hope.} (39. Bxa4+ $17 {was forced.} Rxa4 40. Nc2) 39... Nxc3 $19 40. Nc5+ Ke8 41. Kf2 Ra3 42. Bd3 Bxd3 43. Nbxd3 {[%mdl 4096] Endgame KRN-KNN} Ra2+ 44. Kf3 Nb5 45. g4 Nxd4+ 46. Ke3 Nc6 47. f5 gxf5 48. gxf5 Ke7 49. fxe6 (49. h4 $142 exf5 50. Kf4) 49... fxe6 50. Nf4 Ra3+ 51. Ke2 Nxe5 52. Ncxe6 Ra4 {Against Nd4} 53. Kf2 Kf6 {Black mates.} 54. Kg3 Ra3+ 55. Kg2 Kf5 56. h4 Ra6 57. Kf2 Rxe6 58. Nxd5 Ra6 59. Ne3+ Kf4 60. Ng2+ Kg4 {Weighted Error Value: White=0.44/Black=0.10 (very precise)} 0-1

[Event "Marmaris Icmeler-IM May 2022"]
[Site "Icmeler"]
[Date "2022.05.06"]
[Round "3.4"]
[White "Kilic, Eray"]
[Black "Huseyinoglu, Alihan"]
[Result "1/2-1/2"]
[ECO "B09"]
[WhiteElo "2192"]
[BlackElo "2278"]
[Annotator "TA"]
[PlyCount "86"]
[EventDate "2022.05.05"]
[EventType "schev"]
[EventCountry "TUR"]
[SourceTitle "playchess.com"]
[Source "ChessBase"]
[SourceQuality "1"]
[TimeControl "5400+30"]

{[%evp 20,86,46,24,44,0,0,0,0,0,-13,-13,-12,-8,-21,-18,-22,-8,-12,-14,0,-25,-16,-11,-14,-136,-135,-125,-16,-104,-126,-108,0,0,0,0,44,45,40,35,52,55,54,52,81,83,93,73,100,0,0,0,0,0,5,0,0,0,291,282,275,0,0,0,0,0,0,0,0]} 1. e4 d6 2. d4 Nf6 3. Nc3 g6 4. f4 Bg7 5. Nf3 O-O 6. Bd3 Na6 7. O-O c5 8. d5 Bg4 9. h3 Bxf3 10. Rxf3 $1 {10.Rxf3 is better than 10.Qxf3.} Nc7 11. Qe2 a6 {B09: Pirc Defence: Austrian Attack.} 12. a4 {Prevents b5.} e6 {[#]} 13. f5 $146 ({Predecessor:} 13. dxe6 Nxe6 14. Qf1 Nd4 15. Rf2 Re8 16. f5 gxf5 17. Bg5 h6 18. Bh4 b5 19. exf5 {½-½ (41) Lobanov,S (2516)-Batsuren,D (2454) New Delhi 2019}) 13... exf5 14. exf5 Nfxd5 15. fxg6 (15. Nxd5 {is more complex.} Nxd5 16. fxg6 hxg6 17. Bxg6 fxg6 18. Qe6+) 15... hxg6 16. Nxd5 Nxd5 17. Bxg6 fxg6 (17... Bd4+ 18. Kh1 fxg6 19. Qe6+ Kh7 20. Qxd5) 18. Qe6+ Kh7 19. Qxd5 Qh4 20. Be3 Rxf3 21. Qxf3 Rf8 22. Qxb7 (22. Qg4 $1 $11 {remains equal.} Qxg4 23. hxg4) 22... Qg3 $1 $17 23. Ra3 {[%cal Ob7g7] [#]} ({Avoid the trap} 23. Qe7 $2 Rf3 24. Qg5 Rxe3 $19) 23... Qe1+ $1 {[%mdl 1024] Black has strong compensation.} 24. Kh2 {[#]} Kh8 $1 25. g3 Bd4 ({Don't play} 25... Be5 $6 26. Qg2 $11) (25... c4 $17 {White must now prevent ...c3.} 26. Qh1 Qxh1+ 27. Kxh1 Bxb2) 26. Qh1 $1 $11 Rf1 27. Qg2 Bxe3 {[#]} (27... Kg7 {looks sharper.} 28. Bxd4+ cxd4 29. Rf3 Rxf3 30. Qxf3 Qc1) 28. Rxe3 Qxe3 29. Qxf1 {[%mdl 4096] Endgame KQ-KQ} Qd2+ 30. Qg2 Qd4 31. b3 $1 d5 32. Qe2 a5 33. Kg2 c4 34. Qf2 (34. h4 $16) 34... Qe4+ 35. Kh2 Kg7 36. Qd2 Qe5 37. h4 c3 38. Qd3 Qe1 $2 {[%mdl 8192]} (38... d4 $11) 39. Qd4+ Kh7 {( -> ...Qd2+)} 40. Qa7+ $2 ({White has to play} 40. Qxd5 $18 {Strongly threatening Qf7+.} Qd2+ 41. Qg2) 40... Kh6 {The position is equal.} 41. Qxa5 Qe2+ 42. Kh3 Qe6+ 43. Kg2 Qe2+ {Weighted Error Value: White=0.21 (precise) /Black=0.21 (precise)} 1/2-1/2